[Event "37th Andorra Open 2019"]
[Site "Caldea"]
[Date "2019.08.02"]
[Round "7.8"]
[White "Arizmendi Martinez, Julen Luis"]
[Black "Hansen, Mads"]
[Result "1-0"]
[ECO "C88"]
[WhiteElo "2512"]
[BlackElo "2406"]
[Annotator "ChessBase"]
[PlyCount "81"]
[EventDate "2018.07.21"]
[EventType "swiss"]
[EventCountry "AND"]
[SourceTitle "playchess.com"]
[Source "ChessBase"]
[SourceQuality "1"]
[TimeControl "40/5400+30:1800+30"]

1. e4 {[%emt 0:07:09]} e5 {[%emt 0:00:00]} 2. Nf3 {[%emt 0:00:17]} Nc6 {[%emt 0:00:00]} 3. Bb5 {[%emt 0:01:26]} a6 {[%emt 0:00:00]} 4. Ba4 {[%emt 0:01:01]} Nf6 {[%emt 0:00:00]} 5. O-O {[%emt 0:00:44]} Be7 {[%emt 0:00:02]} 6. Re1 {[%emt 0:02:34]} b5 {[%emt 0:00:04]} 7. Bb3 {[%emt 0:00:06]} O-O {[%emt 0:00:06]} 8. a4 {[%emt 0:08:03]} b4 {[%emt 0:00:07]} 9. a5 {[%emt 0:01:54]} d6 {[%emt 0:00:22]} 10. d3 {[%emt 0:13:47]} Be6 {[%emt 0:08:23]} 11. Nbd2 {[%emt 0:03:15]} Bxb3 {[%emt 0:08:39]} 12. Nxb3 {[%emt 0:00:54]} d5 {[%emt 0:00:04]} 13. exd5 {[%emt 0:06:31]} Qxd5 {[%emt 0:00:12]} 14. Bg5 {[%emt 0:00:25]} Rab8 {[%emt 0:09:51]} 15. Nfd2 {[%emt 0:24:28]} Rb5 {[%emt 0:07:49]} 16. Qe2 {[%emt 0:02:22]} h6 {[%emt 0:01:27]} 17. Bxf6 {[%emt 0:03:25]} Bxf6 {[%emt 0:00:01]} 18. Nc4 {[%emt 0:01:47]} Be7 {[%emt 0:06:22]} 19. Qe4 {[%emt 0:06:16]} Qd7 {[%emt 0:04:22]} 20. Ncd2 {[%emt 0:03:22]} f5 {[%emt 0:00:52]} 21. Qc4+ {[%emt 0:00:34]} Kh8 {[%emt 0:00:34]} 22. Nf3 {[%emt 0:01:15]} Bd6 {[%emt 0:07:35]} 23. Re2 {[%emt 0:02:05]} Re8 {[%emt 0:12:31]} 24. Qh4 {[%emt 0:01:31]} Ne7 {[%emt 0:01:50]} 25. Qh5 {[%emt 0:03:01]} Kg8 {[%emt 0:15:28]} 26. Rae1 {[%emt 0:00:34]} e4 {[%emt 0:00:49]} 27. Nfd4 {[%emt 0:01:15]} Rd5 {[%emt 0:00:49]} 28. Qh3 {[%emt 0:01:36]} exd3 {[%emt 0:07:32]} 29. cxd3 {[%emt 0:00:01]} c5 {[%emt 0:00:39]} 30. Nf3 {[%emt 0:00:49]} Rxd3 {[%emt 0:00:26]} 31. Nxc5 {[%emt 0:00:37]} Bxc5 {[%emt 0:00:35]} 32. Ne5 {[%emt 0:00:01]} Bxf2+ 33. Rxf2 {[%emt 0:00:02]} Rxh3 {[%emt 0:02:52]} 34. Nxd7 {[%emt 0:00:03]} Rd3 {[%emt 0:03:36]} 35. Nc5 {[%emt 0:00:09]} Rd6 {[%emt 0:00:09]} 36. Rfe2 {[%emt 0:00:19]} Kf7 {[%emt 0:00:37]} 37. Kf2 {[%emt 0:01:18]} g5 {[%emt 0:02:31]} 38. g3 {[%emt 0:00:34]} h5 {[%emt 0:00:47]} 39. b3 {[%emt 0:01:54]} Rf6 {[%emt 0:00:44]} 40. Ne6 {[%emt 0:00:00]} Kg6 {[%emt 0:00:00]} 41. Nc7 {[%emt 0:01:58]} 1-0

[Event "37th Andorra Open 2019"]
[Site "Caldea"]
[Date "2019.08.03"]
[Round "8.1"]
[White "Lagarde, Maxime"]
[Black "Ruiz Castillo, Joshua Daniel"]
[Result "1-0"]
[ECO "B23"]
[WhiteElo "2597"]
[BlackElo "2501"]
[Annotator "ChessBase"]
[PlyCount "42"]
[EventDate "2018.07.21"]
[EventType "swiss"]
[EventCountry "AND"]
[SourceTitle "playchess.com"]
[Source "ChessBase"]
[SourceQuality "1"]
[TimeControl "40/5400+30:1800+30"]

1. e4 {[%emt 0:00:00]} c5 {[%emt 0:16:08]} 2. Nc3 {[%emt 0:00:00]} g6 {[%emt 0:00:15]} 3. h4 {[%emt 0:00:00]} h5 {[%emt 0:00:25]} 4. d4 {[%emt 0:00:00]} cxd4 {[%emt 0:09:39]} 5. Qxd4 {[%emt 0:00:00]} Nf6 {[%emt 0:00:03]} 6. Bg5 {[%emt 0:00:00]} Nc6 {[%emt 0:00:19]} 7. Qd2 {[%emt 0:00:00]} Bg7 {[%emt 0:00:14]} 8. O-O-O {[%emt 0:00:04]} d6 {[%emt 0:06:25]} 9. Kb1 {[%emt 0:01:37]} Be6 {[%emt 0:03:42]} 10. f3 {[%emt 0:13:18]} Rc8 {[%emt 0:05:00]} 11. Nh3 {[%emt 0:07:35]} Ne5 {[%emt 0:06:04]} 12. Bb5+ {[%emt 0:19:31]} Bd7 {[%emt 0:02:05]} 13. f4 {[%emt 0:04:01]} Nc4 {[%emt 0:02:04]} 14. Bxc4 {[%emt 0:01:11]} Rxc4 {[%emt 0:00:03]} 15. e5 {[%emt 0:05:12]} dxe5 {[%emt 0:22:51]} 16. fxe5 {[%emt 0:03:40]} Ne4 {[%emt 0:00:02]} 17. Nxe4 {[%emt 0:00:21]} Rxe4 {[%emt 0:00:03]} 18. Nf4 {[%emt 0:07:01]} Qc7 {[%emt 0:05:25]} 19. Bxe7 {[%emt 0:03:19]} Rxf4 {[%emt 0:00:05]} 20. Bd6 {[%emt 0:01:17]} Qc4 {[%emt 0:00:06]} 21. Ba3 {[%emt 0:02:06]} Re4 1-0

[Event "37th Andorra Open 2019"]
[Site "Caldea"]
[Date "2019.08.03"]
[Round "8.2"]
[White "Arizmendi Martinez, Julen Luis"]
[Black "Kogan, Arthur"]
[Result "1/2-1/2"]
[ECO "C95"]
[WhiteElo "2512"]
[BlackElo "2535"]
[Annotator "ChessBase"]
[PlyCount "34"]
[EventDate "2018.07.21"]
[EventType "swiss"]
[EventCountry "AND"]
[SourceTitle "playchess.com"]
[Source "ChessBase"]
[SourceQuality "1"]
[TimeControl "40/5400+30:1800+30"]

1. e4 {[%emt 0:03:58]} e5 {[%emt 0:00:00]} 2. Nf3 {[%emt 0:00:11]} Nc6 {[%emt 0:00:00]} 3. Bb5 {[%emt 0:00:40]} a6 {[%emt 0:00:14]} 4. Ba4 {[%emt 0:01:04]} Nf6 {[%emt 0:01:27]} 5. O-O {[%emt 0:00:48]} b5 {[%emt 0:00:22]} 6. Bb3 {[%emt 0:00:06]} Be7 {[%emt 0:00:06]} 7. Re1 {[%emt 0:02:24]} d6 {[%emt 0:00:34]} 8. c3 {[%emt 0:00:16]} O-O {[%emt 0:00:24]} 9. h3 {[%emt 0:04:47]} Nb8 {[%emt 0:00:42]} 10. d4 {[%emt 0:01:36]} Nbd7 {[%emt 0:00:08]} 11. c4 {[%emt 0:05:34]} Bb7 {[%emt 0:07:11]} 12. Nc3 {[%emt 0:05:14]} c6 {[%emt 0:08:35]} 13. a3 {[%emt 0:02:11]} bxc4 {[%emt 0:17:34]} 14. Bxc4 {[%emt 0:00:50]} Nb6 {[%emt 0:00:09]} 15. Ba2 {[%emt 0:03:58]} Nfd7 {[%emt 0:01:00]} 16. Be3 {[%emt 0:01:24]} Bf6 {[%emt 0:08:40]} 17. Rc1 {[%emt 0:12:40]} a5 {[%emt 0:04:05]} 1/2-1/2

[Event "37th Andorra Open 2019"]
[Site "Caldea"]
[Date "2019.08.03"]
[Round "8.3"]
[White "Narciso Dublan, Marc"]
[Black "Thybo, Jesper Sondergaard"]
[Result "1/2-1/2"]
[ECO "D27"]
[WhiteElo "2489"]
[BlackElo "2528"]
[Annotator "ChessBase"]
[PlyCount "88"]
[EventDate "2018.07.21"]
[EventType "swiss"]
[EventCountry "AND"]
[SourceTitle "playchess.com"]
[Source "ChessBase"]
[SourceQuality "1"]
[TimeControl "40/5400+30:1800+30"]

1. d4 {[%emt 0:00:00]} Nf6 {[%emt 0:00:00]} 2. c4 {[%emt 0:00:00]} e6 {[%emt 0:00:00]} 3. Nf3 {[%emt 0:00:03]} d5 {[%emt 0:00:17]} 4. Nc3 {[%emt 0:00:14]} dxc4 {[%emt 0:00:56]} 5. e3 {[%emt 0:04:23]} a6 {[%emt 0:00:14]} 6. a4 {[%emt 0:00:09]} c5 {[%emt 0:00:19]} 7. Bxc4 {[%emt 0:00:13]} Nc6 {[%emt 0:00:15]} 8. O-O {[%emt 0:00:14]} Be7 {[%emt 0:00:30]} 9. Qe2 {[%emt 0:01:47]} cxd4 {[%emt 0:00:15]} 10. Rd1 {[%emt 0:00:34]} e5 {[%emt 0:00:23]} 11. exd4 {[%emt 0:00:56]} exd4 {[%emt 0:00:22]} 12. Nxd4 {[%emt 0:02:27]} Nxd4 {[%emt 0:00:16]} 13. Qe5 {[%emt 0:00:20]} Qd6 {[%emt 0:00:56]} 14. Qxd6 {[%emt 0:07:29]} Bxd6 {[%emt 0:00:07]} 15. Rxd4 {[%emt 0:00:04]} Bc5 {[%emt 0:03:00]} 16. Rd3 {[%emt 0:11:06]} O-O {[%emt 0:30:03]} 17. Be3 {[%emt 0:00:40]} Bxe3 {[%emt 0:09:46]} 18. Rxe3 {[%emt 0:00:11]} Bd7 {[%emt 0:09:10]} 19. Nd5 {[%emt 0:05:04]} Rfe8 {[%emt 0:11:50]} 20. Nxf6+ {[%emt 0:33:13]} gxf6 {[%emt 0:00:24]} 21. Rg3+ {[%emt 0:04:06]} Kf8 {[%emt 0:00:06]} 22. h3 {[%emt 0:03:35]} h6 {[%emt 0:04:54]} 23. Bd5 {[%emt 0:03:05]} a5 {[%emt 0:09:40]} 24. Rd1 {[%emt 0:07:53]} Bxa4 {[%emt 0:01:32]} 25. b3 {[%emt 0:03:50]} Bc6 {[%emt 0:00:16]} 26. Bxc6 {[%emt 0:00:16]} bxc6 {[%emt 0:00:05]} 27. Rd6 {[%emt 0:01:06]} Re6 {[%emt 0:00:45]} 28. Rxe6 {[%emt 0:00:34]} fxe6 {[%emt 0:00:06]} 29. Rg6 {[%emt 0:00:07]} Ke7 {[%emt 0:08:31]} 30. Rxh6 {[%emt 0:00:15]} Rb8 {[%emt 0:02:52]} 31. Rh7+ {[%emt 0:01:26]} Kd6 {[%emt 0:00:04]} 32. Ra7 {[%emt 0:00:49]} Rxb3 {[%emt 0:01:36]} 33. Rxa5 {[%emt 0:00:14]} Rb1+ {[%emt 0:00:06]} 34. Kh2 {[%emt 0:00:06]} c5 {[%emt 0:00:05]} 35. Ra8 {[%emt 0:04:12]} c4 {[%emt 0:01:24]} 36. Rc8 {[%emt 0:02:56]} Kd5 {[%emt 0:00:07]} 37. g4 {[%emt 0:02:43]} Kd4 {[%emt 0:01:24]} 38. f4 {[%emt 0:00:54]} Rb2+ {[%emt 0:03:42]} 39. Kg3 {[%emt 0:00:16]} c3 {[%emt 0:01:34]} 40. g5 {[%emt 0:00:00]} fxg5 {[%emt 0:00:00]} 41. fxg5 {[%emt 0:10:09]} Rb5 {[%emt 0:11:53]} 42. Kh4 {[%emt 0:01:59]} Rb1 {[%emt 0:01:59]} 43. Rd8+ {[%emt 0:08:03]} Ke3 {[%emt 0:07:38]} 44. Rc8 {[%emt 0:00:09]} Kd4 {[%emt 0:01:06]} 1/2-1/2

[Event "37th Andorra Open 2019"]
[Site "Caldea"]
[Date "2019.08.03"]
[Round "8.4"]
[White "Henderson de La Fuente, Lance"]
[Black "Peralta, Fernando"]
[Result "1/2-1/2"]
[ECO "C07"]
[WhiteElo "2471"]
[BlackElo "2562"]
[Annotator "ChessBase"]
[PlyCount "69"]
[EventDate "2018.07.21"]
[EventType "swiss"]
[EventCountry "AND"]
[SourceTitle "playchess.com"]
[Source "ChessBase"]
[SourceQuality "1"]
[TimeControl "40/5400+30:1800+30"]

1. e4 {[%emt 0:00:00]} e6 {[%emt 0:00:00]} 2. d4 {[%emt 0:00:00]} d5 {[%emt 0:00:00]} 3. Nd2 {[%emt 0:00:03]} c5 {[%emt 0:00:11]} 4. Ngf3 {[%emt 0:00:17]} cxd4 {[%emt 0:00:38]} 5. Nxd4 {[%emt 0:00:26]} Nc6 {[%emt 0:00:34]} 6. Bb5 {[%emt 0:00:18]} Bd7 {[%emt 0:00:27]} 7. Nxc6 {[%emt 0:00:17]} bxc6 {[%emt 0:00:27]} 8. Bd3 {[%emt 0:00:12]} Qc7 {[%emt 0:04:13]} 9. Qe2 {[%emt 0:00:45]} Ne7 {[%emt 0:00:52]} 10. O-O {[%emt 0:01:02]} Ng6 {[%emt 0:00:54]} 11. Nf3 {[%emt 0:00:42]} Bd6 {[%emt 0:04:16]} 12. Re1 {[%emt 0:00:53]} Rb8 {[%emt 0:01:10]} 13. e5 {[%emt 0:01:09]} Be7 {[%emt 0:00:07]} 14. b3 {[%emt 0:00:31]} c5 {[%emt 0:02:32]} 15. c3 {[%emt 0:01:58]} a5 {[%emt 0:01:56]} 16. g3 {[%emt 0:05:16]} a4 {[%emt 0:11:40]} 17. Bc2 {[%emt 0:22:27]} Bb5 {[%emt 0:04:52]} 18. c4 {[%emt 0:05:04]} Bc6 {[%emt 0:13:40]} 19. h4 {[%emt 0:01:17]} Nf8 {[%emt 0:19:15]} 20. h5 {[%emt 0:06:13]} Nd7 {[%emt 0:08:48]} 21. Nh2 {[%emt 0:06:07]} O-O {[%emt 0:02:31]} 22. Ng4 {[%emt 0:00:53]} dxc4 {[%emt 0:06:17]} 23. bxc4 {[%emt 0:01:58]} Ba8 {[%emt 0:01:36]} 24. Be4 {[%emt 0:11:14]} Bxe4 {[%emt 0:00:15]} 25. Qxe4 {[%emt 0:00:02]} Qb7 {[%emt 0:00:31]} 26. Qe2 {[%emt 0:00:35]} Rfd8 {[%emt 0:02:39]} 27. h6 {[%emt 0:00:20]} g6 {[%emt 0:00:14]} 28. Bf4 {[%emt 0:00:53]} Qb2 {[%emt 0:01:16]} 29. Qe3 {[%emt 0:17:33]} Qd4 {[%emt 0:01:07]} 30. Qc1 {[%emt 0:03:49]} Qb2 {[%emt 0:01:13]} 31. Qxb2 {[%emt 0:06:05]} Rxb2 {[%emt 0:00:06]} 32. Reb1 {[%emt 0:00:22]} Rdb8 {[%emt 0:02:49]} 33. Rxb2 {[%emt 0:00:07]} Rxb2 {[%emt 0:00:04]} 34. Rd1 {[%emt 0:00:25]} Rb7 {[%emt 0:01:05]} 35. Kf1 {[%emt 0:08:29]} 1/2-1/2

[Event "37th Andorra Open 2019"]
[Site "Caldea"]
[Date "2019.08.03"]
[Round "8.5"]
[White "Vavulin, Maxim"]
[Black "Roselli Mailhe, Bernardo"]
[Result "1-0"]
[ECO "C01"]
[WhiteElo "2561"]
[BlackElo "2471"]
[Annotator "ChessBase"]
[PlyCount "80"]
[EventDate "2018.07.21"]
[EventType "swiss"]
[EventCountry "AND"]
[SourceTitle "playchess.com"]
[Source "ChessBase"]
[SourceQuality "1"]
[TimeControl "40/5400+30:1800+30"]

1. e4 {[%emt 0:00:00]} e6 {[%emt 0:00:00]} 2. d4 {[%emt 0:00:01]} d5 {[%emt 0:00:00]} 3. Bd3 {[%emt 0:00:34]} c5 {[%emt 0:00:29]} 4. exd5 {[%emt 0:00:12]} exd5 {[%emt 0:00:06]} 5. Nf3 {[%emt 0:00:06]} Nc6 {[%emt 0:00:40]} 6. O-O {[%emt 0:00:42]} Nf6 {[%emt 0:00:48]} 7. Re1+ {[%emt 0:00:55]} Be7 {[%emt 0:00:06]} 8. dxc5 {[%emt 0:00:56]} O-O {[%emt 0:00:07]} 9. Nbd2 {[%emt 0:04:16]} Bxc5 {[%emt 0:01:19]} 10. Nb3 {[%emt 0:00:32]} Bb6 {[%emt 0:01:56]} 11. h3 {[%emt 0:02:36]} Ne4 {[%emt 0:17:16]} 12. Be3 {[%emt 0:01:36]} Bf5 {[%emt 0:02:46]} 13. c3 {[%emt 0:12:06]} Bg6 {[%emt 0:10:15]} 14. Rc1 {[%emt 0:22:24]} Re8 {[%emt 0:08:41]} 15. Rc2 {[%emt 0:19:06]} f5 {[%emt 0:12:50]} 16. Bxb6 {[%emt 0:03:18]} Qxb6 {[%emt 0:02:07]} 17. Nfd4 {[%emt 0:00:43]} Ne5 {[%emt 0:25:48]} 18. Bb5 {[%emt 0:00:43]} Re7 {[%emt 0:00:24]} 19. Qc1 {[%emt 0:15:31]} a6 {[%emt 0:01:02]} 20. Bf1 {[%emt 0:00:15]} Qf6 {[%emt 0:03:05]} 21. Qf4 {[%emt 0:01:19]} Rf8 {[%emt 0:03:04]} 22. f3 {[%emt 0:03:13]} Ng5 {[%emt 0:00:50]} 23. Re3 {[%emt 0:05:26]} Be8 {[%emt 0:02:54]} 24. Rce2 {[%emt 0:01:04]} Qh6 {[%emt 0:04:49]} 25. Rxe5 {[%emt 0:03:14]} Nxh3+ {[%emt 0:00:19]} 26. gxh3 {[%emt 0:00:01]} Qxf4 {[%emt 0:00:10]} 27. Rxe7 {[%emt 0:00:04]} Qg5+ {[%emt 0:00:48]} 28. Kh1 {[%emt 0:02:02]} Bh5 {[%emt 0:00:34]} 29. Rxb7 {[%emt 0:00:35]} Qg3 {[%emt 0:00:24]} 30. Rg2 {[%emt 0:00:55]} Bxf3 {[%emt 0:00:32]} 31. Rxg7+ {[%emt 0:00:26]} Kxg7 {[%emt 0:00:42]} 32. Nxf3 {[%emt 0:00:05]} Qxg2+ {[%emt 0:00:04]} 33. Kxg2 {[%emt 0:00:05]} Ra8 {[%emt 0:00:28]} 34. Nfd4 {[%emt 0:00:37]} Kf6 {[%emt 0:00:10]} 35. Bd3 {[%emt 0:00:12]} h6 {[%emt 0:01:09]} 36. Bxf5 {[%emt 0:00:40]} Ke5 {[%emt 0:00:16]} 37. Kf3 {[%emt 0:00:19]} h5 {[%emt 0:00:25]} 38. Nc5 {[%emt 0:00:27]} a5 {[%emt 0:00:17]} 39. a4 {[%emt 0:01:39]} h4 {[%emt 0:00:08]} 40. Nd3+ {[%emt 0:00:00]} Kd6 {[%emt 0:00:00] Ke4} 1-0

[Event "37th Andorra Open 2019"]
[Site "Caldea"]
[Date "2019.08.03"]
[Round "8.6"]
[White "Fluvia Poyatos, Jordi"]
[Black "Cuartas, Jaime Alexander"]
[Result "1-0"]
[ECO "D45"]
[WhiteElo "2455"]
[BlackElo "2542"]
[Annotator "ChessBase"]
[PlyCount "101"]
[EventDate "2018.07.21"]
[EventType "swiss"]
[EventCountry "AND"]
[SourceTitle "playchess.com"]
[Source "ChessBase"]
[SourceQuality "1"]
[TimeControl "40/5400+30:1800+30"]

1. Nf3 {[%emt 0:00:06]} d5 {[%emt 0:00:00]} 2. c4 {[%emt 0:00:25]} c6 {[%emt 0:00:00]} 3. e3 {[%emt 0:00:42]} Nf6 {[%emt 0:00:00]} 4. Nc3 {[%emt 0:00:35]} e6 {[%emt 0:00:04]} 5. d4 {[%emt 0:00:29]} Nbd7 {[%emt 0:00:07]} 6. Bd2 {[%emt 0:01:34]} b6 {[%emt 0:00:22]} 7. Bd3 {[%emt 0:06:14]} Bb7 {[%emt 0:00:05]} 8. O-O {[%emt 0:01:37]} dxc4 {[%emt 0:02:38]} 9. Bxc4 {[%emt 0:00:39]} b5 {[%emt 0:00:00]} 10. Bd3 {[%emt 0:02:47]} Bd6 {[%emt 0:00:08]} 11. b4 {[%emt 0:07:51]} O-O {[%emt 0:02:12]} 12. a3 {[%emt 0:05:42]} e5 {[%emt 0:05:00]} 13. Qc2 {[%emt 0:09:45]} exd4 {[%emt 0:04:12]} 14. exd4 {[%emt 0:01:27]} h6 {[%emt 0:00:38]} 15. Rfe1 {[%emt 0:01:41]} a5 {[%emt 0:05:01]} 16. bxa5 {[%emt 0:14:47]} Bc7 {[%emt 0:17:37]} 17. Ne4 {[%emt 0:05:26]} Bxa5 {[%emt 0:05:36]} 18. Bxa5 {[%emt 0:06:41]} Rxa5 {[%emt 0:00:11]} 19. Nd6 {[%emt 0:00:19]} Qb8 {[%emt 0:08:44]} 20. Nf5 {[%emt 0:02:27]} Qa8 {[%emt 0:02:51]} 21. Ne5 {[%emt 0:11:24]} Nxe5 {[%emt 0:06:43]} 22. dxe5 {[%emt 0:00:23]} Nd5 {[%emt 0:00:11]} 23. Qc1 {[%emt 0:04:36]} Qd8 {[%emt 0:12:59]} 24. Nxh6+ {[%emt 0:02:06]} Kh8 {[%emt 0:00:03]} 25. Nf5 {[%emt 0:04:00]} Ra4 {[%emt 0:02:10]} 26. Re4 {[%emt 0:01:09]} Kg8 {[%emt 0:05:37]} 27. Rxa4 {[%emt 0:00:40]} bxa4 {[%emt 0:00:01]} 28. Rb1 {[%emt 0:01:11]} Bc8 {[%emt 0:00:45]} 29. Qxc6 {[%emt 0:04:21]} Bxf5 {[%emt 0:04:47]} 30. Bxf5 {[%emt 0:00:11]} Ne7 {[%emt 0:00:16]} 31. Qd7 {[%emt 0:01:11]} Nxf5 {[%emt 0:00:04]} 32. Qxf5 {[%emt 0:00:06]} Qd5 {[%emt 0:00:02]} 33. Qc2 {[%emt 0:01:55]} Ra8 {[%emt 0:00:36]} 34. Re1 {[%emt 0:00:25]} Qb3 {[%emt 0:00:33]} 35. Qc5 {[%emt 0:00:17]} Rd8 {[%emt 0:00:16]} 36. h3 {[%emt 0:00:29]} Rd3 {[%emt 0:00:31]} 37. Re3 {[%emt 0:00:51]} Rd1+ {[%emt 0:00:17]} 38. Kh2 {[%emt 0:00:09]} Qb1 {[%emt 0:00:05]} 39. Qc8+ {[%emt 0:01:38]} Kh7 {[%emt 0:00:04]} 40. Qg4 {[%emt 0:00:00]} g6 {[%emt 0:00:00]} 41. e6 {[%emt 0:04:32]} Rh1+ {[%emt 0:07:06]} 42. Kg3 {[%emt 0:00:05]} fxe6 {[%emt 0:00:16]} 43. Qxe6 {[%emt 0:02:28]} Qb8+ {[%emt 0:00:15]} 44. f4 {[%emt 0:01:38]} Rb1 {[%emt 0:00:19]} 45. Qd7+ {[%emt 0:04:09]} Kh6 {[%emt 0:00:14]} 46. Qxa4 {[%emt 0:01:27]} g5 {[%emt 0:00:10]} 47. Qc6+ {[%emt 0:00:27]} Kh5 {[%emt 0:00:13]} 48. Qf3+ {[%emt 0:00:07]} Kh6 {[%emt 0:00:12]} 49. Re6+ {[%emt 0:01:50]} Kg7 {[%emt 0:00:07]} 50. Qc3+ {[%emt 0:00:29]} Kg8 {[%emt 0:00:04]} 51. Rg6+ {[%emt 0:00:12]} 1-0

[Event "37th Andorra Open 2019"]
[Site "Caldea"]
[Date "2019.08.03"]
[Round "8.8"]
[White "Rychagov, Andrey"]
[Black "Kirk, Ezra"]
[Result "1-0"]
[ECO "D42"]
[WhiteElo "2537"]
[BlackElo "2420"]
[Annotator "ChessBase"]
[PlyCount "83"]
[EventDate "2018.07.21"]
[EventType "swiss"]
[EventCountry "AND"]
[SourceTitle "playchess.com"]
[Source "ChessBase"]
[SourceQuality "1"]
[TimeControl "40/5400+30:1800+30"]

1. d4 {[%emt 0:00:00]} Nf6 {[%emt 0:00:00]} 2. c4 {[%emt 0:00:00]} e6 {[%emt 0:00:00]} 3. Nf3 {[%emt 0:00:19]} d5 {[%emt 0:00:00]} 4. Nc3 {[%emt 0:01:27]} c5 {[%emt 0:00:05]} 5. cxd5 {[%emt 0:07:43]} Nxd5 {[%emt 0:00:32]} 6. e3 {[%emt 0:01:13]} Nc6 {[%emt 0:00:56]} 7. Bd3 {[%emt 0:02:00]} cxd4 {[%emt 0:03:21]} 8. exd4 {[%emt 0:00:22]} Be7 {[%emt 0:00:08]} 9. O-O {[%emt 0:01:11]} O-O {[%emt 0:01:19]} 10. Re1 {[%emt 0:00:21]} Bf6 {[%emt 0:04:03]} 11. Be4 {[%emt 0:00:23]} Nce7 {[%emt 0:04:28]} 12. Qd3 {[%emt 0:02:45]} g6 {[%emt 0:01:10]} 13. Bh6 {[%emt 0:06:46]} Bg7 {[%emt 0:02:29]} 14. Qd2 {[%emt 0:13:19]} b6 {[%emt 0:02:14]} 15. Bg5 {[%emt 0:08:46]} f6 {[%emt 0:00:42]} 16. Bh6 {[%emt 0:08:37]} Bxh6 {[%emt 0:03:41]} 17. Qxh6 {[%emt 0:00:04]} Bb7 {[%emt 0:02:57]} 18. Qd2 {[%emt 0:14:57]} Qd7 {[%emt 0:03:24]} 19. h4 {[%emt 0:02:15]} Kh8 {[%emt 0:04:01]} 20. Re2 {[%emt 0:08:17]} Rad8 {[%emt 0:04:11]} 21. Rd1 {[%emt 0:04:51]} Qd6 {[%emt 0:21:12]} 22. Ree1 {[%emt 0:01:38]} a6 {[%emt 0:01:44]} 23. Nxd5 {[%emt 0:02:08]} Nxd5 {[%emt 0:06:15]} 24. Bxg6 {[%emt 0:05:25]} Rg8 {[%emt 0:01:54]} 25. Be4 {[%emt 0:01:25]} f5 {[%emt 0:01:43]} 26. Ne5 {[%emt 0:00:38]} Qe7 {[%emt 0:05:54]} 27. Bxd5 {[%emt 0:01:46]} Bxd5 {[%emt 0:00:38]} 28. f3 {[%emt 0:00:25]} Rg3 {[%emt 0:07:29]} 29. Qf4 {[%emt 0:00:16]} Rdg8 {[%emt 0:02:16]} 30. Rd2 {[%emt 0:02:34]} Qg7 {[%emt 0:06:14]} 31. Ree2 {[%emt 0:00:45]} Bxa2 {[%emt 0:00:28]} 32. Rc2 {[%emt 0:02:04]} Bb3 {[%emt 0:01:52]} 33. Rcd2 {[%emt 0:00:05]} a5 {[%emt 0:03:24]} 34. h5 {[%emt 0:00:35]} Qf6 {[%emt 0:03:20]} 35. h6 {[%emt 0:00:53]} R3g5 {[%emt 0:00:51]} 36. Re3 {[%emt 0:00:42]} Bd5 {[%emt 0:01:36]} 37. Rc3 {[%emt 0:00:39]} Rf8 {[%emt 0:01:02]} 38. Nd7 {[%emt 0:00:41]} Qxh6 {[%emt 0:00:31]} 39. Qe5+ {[%emt 0:00:23]} Rg7 {[%emt 0:00:08]} 40. Rdc2 {[%emt 0:00:00]} Rfg8 {[%emt 0:00:00]} 41. Rc8 {[%emt 0:02:05]} Bxf3 {[%emt 0:08:32]} 42. Nf6 {[%emt 0:07:50]} 1-0

[Event "37th Andorra Open 2019"]
[Site "Caldea"]
[Date "2019.08.04"]
[Round "9.1"]
[White "Vavulin, Maxim"]
[Black "Lagarde, Maxime"]
[Result "0-1"]
[ECO "C01"]
[WhiteElo "2561"]
[BlackElo "2597"]
[Annotator "ChessBase"]
[PlyCount "101"]
[EventDate "2018.07.21"]
[EventType "swiss"]
[EventCountry "AND"]
[SourceTitle "playchess.com"]
[Source "ChessBase"]
[SourceQuality "1"]
[TimeControl "40/5400+30:1800+30"]

1. e4 {[%emt 0:00:00]} e6 {[%emt 0:00:00]} 2. d4 {[%emt 0:00:05]} d5 {[%emt 0:00:00]} 3. Bd3 {[%emt 0:00:10]} dxe4 {[%emt 0:00:00]} 4. Bxe4 {[%emt 0:00:05]} Nf6 {[%emt 0:00:00]} 5. Bf3 {[%emt 0:00:07]} c5 {[%emt 0:00:00]} 6. Ne2 {[%emt 0:00:09]} Nc6 {[%emt 0:00:00]} 7. Be3 {[%emt 0:00:09]} cxd4 {[%emt 0:00:00]} 8. Nxd4 {[%emt 0:00:14]} Ne5 {[%emt 0:00:00]} 9. Nc3 {[%emt 0:02:50]} a6 {[%emt 0:09:33]} 10. Qe2 {[%emt 0:01:00]} Nxf3+ {[%emt 0:13:08]} 11. Qxf3 {[%emt 0:00:15]} e5 {[%emt 0:18:30]} 12. Nb3 {[%emt 0:24:07]} Bb4 {[%emt 0:03:50]} 13. O-O {[%emt 0:01:30]} Bxc3 {[%emt 0:01:35]} 14. bxc3 {[%emt 0:00:13]} O-O {[%emt 0:00:44]} 15. Rfe1 {[%emt 0:20:52]} Qd5 {[%emt 0:04:44]} 16. Qxd5 {[%emt 0:05:15]} Nxd5 {[%emt 0:00:05]} 17. Bc5 {[%emt 0:02:20]} Re8 {[%emt 0:00:36]} 18. c4 {[%emt 0:00:17]} Nf4 {[%emt 0:02:01]} 19. Bd6 {[%emt 0:08:51]} f6 {[%emt 0:03:24]} 20. c5 {[%emt 0:04:38]} a5 {[%emt 0:01:55]} 21. Nd2 {[%emt 0:02:51]} Be6 {[%emt 0:12:59]} 22. c4 {[%emt 0:05:42]} Bf5 {[%emt 0:11:45]} 23. Re3 {[%emt 0:01:13]} Nd3 {[%emt 0:06:07]} 24. Nf3 {[%emt 0:07:02]} Nb4 {[%emt 0:05:52]} 25. Rb3 {[%emt 0:01:43]} Bc2 {[%emt 0:00:12]} 26. Rb2 {[%emt 0:01:11]} Be4 {[%emt 0:00:04]} 27. Nd2 {[%emt 0:05:29]} Bc6 {[%emt 0:01:08]} 28. Nb3 {[%emt 0:01:55]} Nd3 {[%emt 0:01:46]} 29. Rd2 {[%emt 0:00:05]} Nf4 {[%emt 0:01:08]} 30. f3 {[%emt 0:00:08]} a4 {[%emt 0:01:04]} 31. Nc1 {[%emt 0:02:36]} a3 {[%emt 0:00:09]} 32. Ne2 {[%emt 0:01:50]} Nxe2+ {[%emt 0:00:48]} 33. Rxe2 {[%emt 0:00:01]} e4 {[%emt 0:01:47]} 34. fxe4 {[%emt 0:01:08]} Ra4 {[%emt 0:00:57]} 35. Rc1 {[%emt 0:00:49]} Rb4 {[%emt 0:00:59]} 36. Rc3 {[%emt 0:00:37]} Rxe4 {[%emt 0:00:35]} 37. Rxe4 {[%emt 0:00:29]} Bxe4 {[%emt 0:00:06]} 38. Rxa3 {[%emt 0:00:32]} Rxc4 {[%emt 0:00:10]} 39. Re3 {[%emt 0:00:30]} Rc1+ {[%emt 0:00:40]} 40. Kf2 {[%emt 0:00:00]} Rc2+ {[%emt 0:00:00]} 41. Re2 {[%emt 0:12:26]} Rxe2+ {[%emt 0:00:20]} 42. Kxe2 {[%emt 0:00:03]} Bxg2 {[%emt 0:00:03]} 43. a4 {[%emt 0:00:48]} g5 {[%emt 0:04:07]} 44. h4 {[%emt 0:11:24]} h6 {[%emt 0:16:39]} 45. Be7 {[%emt 0:04:53]} Kf7 {[%emt 0:00:17]} 46. Bd8 {[%emt 0:00:04]} Kg6 {[%emt 0:01:53]} 47. Ke3 {[%emt 0:02:00]} Bc6 {[%emt 0:00:44]} 48. a5 {[%emt 0:00:05]} f5 {[%emt 0:01:56]} 49. hxg5 {[%emt 0:00:08]} hxg5 {[%emt 0:00:03]} 50. Bc7 {[%emt 0:00:13]} Kh5 {[%emt 0:01:35]} 51. Kd4 {[%emt 0:02:01]} 0-1